[Event "Chessable English Open-ch 2022"]
[Site "Kenilwoth"]
[Date "2022.05.21"]
[Round "6.12"]
[White "Zheng, Harry Z"]
[Black "Wells, Daniel J"]
[Result "1/2-1/2"]
[ECO "B33"]
[WhiteElo "1915"]
[BlackElo "2020"]
[Annotator "TA"]
[PlyCount "89"]
[EventDate "2022.05.18"]
[EventType "swiss"]
[EventCountry "ENG"]
[SourceTitle "playchess.com"]
[Source "ChessBase"]
[SourceQuality "1"]
[TimeControl "5400+30"]

{[%evp 20,89,18,12,9,6,14,6,8,8,9,0,10,-2,14,0,0,0,0,0,11,18,60,59,62,57,71,68,63,40,37,45,37,0,0,-19,4,-34,-20,-34,-27,-27,0,0,0,0,0,0,0,-70,0,0,0,0,0,0,145,-842,-189,-237,0,0,0,-278,-100,-499,0,-348,0,0,0,0]} 1. e4 {[%emt 0:00:03]} c5 {[%emt 0:00:04]} 2. Nf3 {[%emt 0:00:09][%cal Bg1f3,Bf3d4,Bd4b5,Bb5a3,Ba3c2][%mdl 32]} Nc6 {[%emt 0:00:08]} 3. d4 {[%emt 0:00:10]} cxd4 {[%emt 0:00:06]} 4. Nxd4 {[%emt 0:00:06]} Nf6 {[%emt 0:00:05]} 5. Nc3 {[%emt 0:00:39]} e5 {[%emt 0:00:06]} 6. Ndb5 {[%emt 0:00:10]} d6 {[%emt 0:00:09]} 7. Bg5 {[%emt 0:00:13]} a6 {[%emt 0:00:08]} 8. Na3 {[%emt 0:00:07]} b5 {[%emt 0:00:06]} 9. Nd5 {[%emt 0:00:11]} Be7 {[%emt 0:00:48][%cal Bf8e7,Be7f6,Bf6g5][%mdl 32]} 10. Bxf6 {[%emt 0:00:13]} Bxf6 {[%emt 1:33:50]} 11. c4 {[%emt 0:00:58]} b4 {[%emt 0:00:00] B33: Sicilian: Pelikan and Sveshnikov Variations.} 12. Nc2 {[%emt 0:00:11]} O-O $1 {[%emt 0:00:00][%mdl 4] outshines the older 12...a5.} 13. g3 {[%emt 0:01:19]} Bg5 {[%emt 0:00:00]} 14. Bg2 {[%emt 0:01:35]} ({But not} 14. Ncxb4 Nxb4 15. Nxb4 Qb6 $17) 14... a5 {[%emt 0:00:00]} 15. O-O {[%emt 0:00:45]} Ne7 {[%emt 0:00:00]} 16. h4 {[%emt 0:03:35]} Bh6 {[%emt 0:00:00]} 17. Nce3 {[%emt 0:11:21]} Bxe3 {[%emt 0:00:00]} 18. Nxe3 {[%emt 0:02:45]} Be6 {[%emt 0:00:00]} 19. Qd3 {[%emt 0:01:34]} Qb6 {[%emt 0:00:00]} 20. Nf5 {[%emt 0:14:15]} Bxf5 {[%emt 0:00:00]} 21. exf5 {[%emt 0:00:13] Black must now prevent f6.} Rac8 {[%emt 0:00:00] [#]} 22. b3 $146 {[%emt 0:05:28]} ({Predecessor:} 22. Rad1 Rfd8 23. Rd2 f6 24. Rfd1 Kf8 25. g4 Nc6 26. g5 Nd4 27. Kh2 b3 28. gxf6 gxf6 {1-0 (37) Shirov,A (2710)-Muzychuk,M (2483) Caleta 2012}) 22... Rfd8 {[%emt 0:00:00]} 23. Rad1 {[%emt 0:01:30]} Rc5 {[%emt 0:00:00]} 24. Qe4 {[%emt 0:05:26]} f6 {[%emt 0:00:00]} 25. Rd2 {[%emt 0:07:16]} Nc6 {[%emt 0:00:00]} 26. h5 {[%emt 0:04:50][%cal Oh5h6]} h6 $1 {[%emt 0:00:00]} 27. g4 {[%emt 0:07:29]} Qc7 {[%emt 0:00:00]} 28. Qc2 {[%emt 0:07:34]} Nd4 {[%emt 0:01:16]} 29. Qd1 {[%emt 0:00:25]} a4 {[%emt 0:01:26]} 30. Bd5+ {[%emt 0:02:07]} Rxd5 {[%emt 0:04:23]} 31. cxd5 {[%emt 0:00:23]} Qc5 {[%emt 0:00:16]} 32. bxa4 {[%emt 0:12:41]} Ra8 {[%emt 0:01:33]} 33. Rxd4 {[%emt 0:02:26]} exd4 $11 {[%emt 0:01:02][%mdl 4096] Endgame KQR-KQR} 34. Qb3 {[%emt 0:02:01] Prevents Qc4.} ({White should play} 34. Re1 $11) 34... Qc3 {[%emt 0:00:24]} (34... Re8 $1 $15 35. Rd1 Re4) 35. Rd1 $1 {[%emt 0:03:45]} Re8 {[%emt 0:00:27]} 36. Kg2 {[%emt 0:00:53]} Re4 {[%emt 0:00:29]} 37. Rd3 $1 {[%emt 0:01:10]} Qe1 {[%emt 0:00:36]} (37... Rxg4+ $2 38. Kf3 Qxb3 39. Rxb3 $16 (39. axb3 Rh4 $18)) (37... Qa1 $11) 38. Rg3 $2 {[%emt 0:00:48][%mdl 8192] [#]} (38. Qd1 $16) 38... Rf4 $2 {[%emt 0:00:22]} (38... Re2 39. Rf3 Rd2) 39. Qc2 {[%emt 0:00:44]} (39. Rf3 {is a better defense.} Qe4 40. Qd3 Rxg4+ 41. Kf1) 39... Re4 $2 {[%emt 0:00:22]} (39... d3 $1 $19 {[%cal Rd3c2]} 40. Rxd3 Rxg4+ 41. Rg3 Rh4) 40. Qd3 {[%emt 0:00:49]} Rf4 {[%emt 0:00:23]} 41. Qf1 {[%emt 0:01:07][%mdl 8192] [#]} (41. f3 $11) 41... Qe4+ $2 {[%emt 0:00:07]} (41... Qd2 $1 $19 {[%cal Rd2a2] is more deadly.} 42. g5 hxg5) 42. Kh3 $2 {[%emt 0:00:33][%mdl 8192]} (42. f3 $17 {nothing else works.} Qc2+ 43. Kh3) 42... Qxd5 $2 {[%emt 0:00:18]} (42... d3 $19 43. Rxd3 Rxg4) 43. Qe1 {[%emt 0:00:25][%mdl 8192]} (43. Qg2 $1 $11 Qxa2 44. Qa8+ Kh7 45. Qe8) 43... Qxa2 $2 {[%emt 0:01:17]} (43... Kh7 $19 {Strongly threatening ...d3.} 44. Kh4 d3) 44. Qe8+ {[%emt 0:00:07]} Kh7 {[%emt 0:00:07]} 45. Qg6+ {[%emt 0:00:50] Weighted Error Value: White=0.73/Black=0.75} 1/2-1/2

[Event "Chessable English Open-ch 2022"]
[Site "Kenilwoth"]
[Date "2022.05.21"]
[Round "6.13"]
[White "Ireland, David J"]
[Black "Shenbagakumar, Gautham"]
[Result "1/2-1/2"]
[ECO "D55"]
[WhiteElo "2000"]
[BlackElo "1700"]
[Annotator "TA"]
[PlyCount "128"]
[EventDate "2022.05.18"]
[EventType "swiss"]
[EventCountry "ENG"]
[SourceTitle "playchess.com"]
[Source "ChessBase"]
[SourceQuality "1"]
[TimeControl "5400+30"]

{[%evp 20,128,31,20,39,0,21,17,82,35,32,1,15,0,16,31,39,0,0,0,0,0,0,0,-9,-15,0,-54,0,0,0,-18,-21,-27,-8,-8,0,0,0,-38,-9,-12,19,-5,-10,-140,5,4,108,101,212,211,570,569,566,585,567,561,797,789,770,773,816,827,1188,83,104,0,0,0,0,0,21,29,75,0,0,0,5,5,5,5,5,5,8,0,12,13,13,0,0,0,0,0,94,95,143,0,0,0,0,5,20,28,50,0,0,0,0,0,0]} 1. d4 {[%emt 0:09:07]} Nf6 {[%emt 0:00:05]} 2. Nf3 {[%emt 0:00:19]} d5 {[%emt 0:00:07]} 3. c4 {[%emt 0:00:12]} e6 {[%emt 0:00:10]} 4. Bg5 {[%emt 0:00:29]} Be7 {[%emt 0:03:31]} 5. Nc3 {[%emt 0:01:01]} b6 {[%emt 0:04:08]} 6. cxd5 {[%emt 0:01:19]} exd5 {[%emt 0:00:15]} 7. e3 {[%emt 0:00:33]} Bb7 {[%emt 0:01:17]} 8. Bd3 {[%emt 0:01:05]} Nbd7 {[%emt 0:00:09]} 9. O-O {[%emt 0:01:25]} O-O {[%emt 0:00:14]} 10. Rc1 {[%emt 0:02:21]} c5 {[%emt 0:11:23]} 11. Re1 {[%emt 0:07:18]} Re8 {[%emt 0:00:34] D55: Queen's Gambit Declined: 4 Bg5 Be7: Lines without ...h6 and 6...h6 7 Bxf6.} 12. Bb1 {[%emt 0:02:15] [#]} Qc7 $146 {[%emt 0:03:41]} ({Predecessor:} 12... Nf8 13. dxc5 bxc5 14. Na4 c4 15. Nc3 Qa5 16. Nd4 Ne6 17. Bxf6 Bxf6 18. Nf5 Rad8 19. Qc2 {0-1 (31) Rasmussen,S (2059)-Merkistein,S (1890) Faroe Islands 2018}) 13. Bf4 {[%emt 0:01:20]} Qd8 {[%emt 0:01:08]} (13... Bd6 $2 14. Nb5 Bxf4 15. Nxc7 $18) (13... Qc6 $1 $11) 14. Ne5 {[%emt 0:00:22]} (14. Nb5 $16) 14... Nxe5 {[%emt 0:10:35]} 15. Bxe5 {[%emt 0:01:24]} Nd7 {[%emt 0:04:53]} 16. Bf4 {[%emt 0:08:50]} a6 {[%emt 0:03:55] Prevents Nb5.} 17. dxc5 {[%emt 0:01:55]} Nxc5 {[%emt 0:00:35]} 18. Ne2 {[%emt 0:02:04]} (18. Re2 $14) 18... Bf6 $11 {[%emt 0:03:58]} 19. Nd4 {[%emt 0:02:53]} g6 {[%emt 0:00:49]} 20. b4 {[%emt 0:02:47]} Ne6 {[%emt 0:00:20]} 21. Nxe6 {[%emt 0:00:58]} Rxe6 {[%emt 0:00:03]} 22. Rc7 {[%emt 0:03:39]} Bc6 {[%emt 0:03:05]} 23. Qc2 {[%emt 0:01:03] Against Bc3} (23. a3 $11) 23... Rc8 {[%emt 0:00:50]} (23... Qe8 $15 24. Rc1 Bb5) 24. Rxc8 {[%emt 0:02:00]} Qxc8 {[%emt 0:00:08]} 25. Rc1 {[%emt 0:01:57]} Qe8 {[%emt 0:01:35]} 26. h3 {[%emt 0:01:54]} Qd7 {[%emt 0:06:43]} 27. Qe2 {[%emt 0:07:48]} b5 {[%emt 0:09:41]} 28. Qg4 {[%emt 0:08:15]} Bg7 {[%emt 0:01:32]} 29. h4 {[%emt 0:02:17]} d4 {[%emt 0:09:25]} (29... h5 $5 {[%cal Rh5g4]} 30. Qd1 d4 $15) 30. h5 {[%emt 0:02:01]} d3 {[%emt 0:01:19]} 31. hxg6 {[%emt 0:01:13]} hxg6 {[%emt 0:00:21]} 32. Qd1 {[%emt 0:03:12] [#]} (32. Rd1 $11) 32... Qd5 {[%emt 0:13:31]} (32... Bb2 $1 $17 {[%cal Rb2c1]} 33. Rc5 d2) 33. f3 {[%emt 0:02:00]} g5 {[%emt 0:00:03]} (33... Bf8 $11 34. Qd2 g5) 34. Rc5 $16 {[%emt 0:02:27]} Qd7 {[%emt 0:00:43]} (34... gxf4 $16 {was worth a try.} 35. Rxd5 Bxd5) 35. Rxg5 $18 {[%emt 0:02:33]} d2 $2 {[%emt 0:03:17]} (35... Kf8 {is tougher.}) 36. Bf5 {[%emt 0:02:42]} Kf8 {[%emt 0:00:49]} 37. Bxe6 {[%emt 0:02:26]} fxe6 {[%emt 0:00:01]} 38. Rc5 {[%emt 0:01:52] Prevents Bc3.} e5 {[%emt 0:03:27]} 39. Bxe5 {[%emt 0:04:55]} Bxe5 {[%emt 0:00:01]} 40. Rxe5 {[%emt 0:00:11][%mdl 4096] Endgame KQR-KQB} Qd3 {[%emt 0:00:15]} 41. Kf2 {[%emt 0:00:24]} Bd5 {[%emt 0:00:44]} 42. Rxd5 $2 {[%emt 0:01:31]} Qxd5 {[%emt 0:00:01] KQ-KQ} 43. Ke2 {[%emt 0:00:12]} (43. e4 $16 Qd3 44. e5) 43... Qc4+ $11 {[%emt 0:00:29]} 44. Kxd2 {[%emt 0:00:19]} Qxb4+ {[%emt 0:00:01]} 45. Kc2 {[%emt 0:01:27]} Qa4+ {[%emt 0:00:09]} 46. Kc1 {[%emt 0:00:31] [#] Hoping for Qxa4.} Qxa2 {[%emt 0:00:10]} (46... Qa3+ $11 {was preferrable.} 47. Kd2 (47. Kb1 Qb4+ 48. Kc2 Qc4+ 49. Kb1 Qb4+ 50. Qb3 Qe1+ 51. Kc2 Qe2+ 52. Kc3 Qxe3+ 53. Kb4 Qd2+ 54. Kc5 Qxg2 $14) 47... Qb4+ 48. Kc2 Qc5+ 49. Kb1 Qb4+ 50. Qb3 Qe1+ 51. Kc2 Qe2+ 52. Kc3 Qxe3+ 53. Kb4 Qe1+ 54. Kc5 Qf2+ 55. Kb4 Qe1+ 56. Kc5 Qf2+ 57. Kc6 Qxg2) 47. Qd2 {[%emt 0:02:52]} (47. Qd6+ $16 Kf7 48. g4) 47... Qa1+ {[%emt 0:00:05]} 48. Kc2 {[%emt 0:00:07]} Qa4+ {[%emt 0:00:11]} 49. Kb2 {[%emt 0:00:30]} b4 {[%emt 0:00:21]} 50. Qd6+ {[%emt 0:00:34]} Kg8 {[%emt 0:00:35]} 51. Qd5+ {[%emt 0:00:34]} Kf8 {[%emt 0:00:19]} 52. Qd6+ {[%emt 0:00:24]} Kg8 {[%emt 0:00:14]} 53. Qd3 {[%emt 0:00:10] Threatens to win with Qb3+. Active counter play!} Kf8 $1 {[%emt 0:00:03]} 54. g4 {[%emt 0:00:20] Black must now prevent f4.} Qc6 {[%emt 0:01:00]} 55. Qf5+ {[%emt 0:02:15]} Kg8 {[%emt 0:00:26]} 56. Qg5+ {[%emt 0:00:25]} Kh8 {[%emt 0:00:14]} (56... Kf7 $11 {keeps the balance.}) 57. Qe5+ $16 {[%emt 0:00:46]} Kg8 {[%emt 0:00:37]} 58. Qb8+ {[%emt 0:00:33]} ({White should play} 58. e4 $16 {aiming for Qd5+.} Qb6 59. Qd5+ Kg7 60. e5) 58... Kh7 $11 {[%emt 0:00:52]} 59. Qxb4 {[%emt 0:00:30]} Qxf3 {[%emt 0:00:01]} 60. Qe7+ {[%emt 0:00:36]} Kg8 {[%emt 0:00:14]} 61. Qe6+ {[%emt 0:00:36]} Kh8 {[%emt 0:00:19]} 62. g5 {[%emt 0:00:51]} (62. e4 $14 Qe3 63. e5 (63. Qxa6 Qd2+ 64. Ka3 Qe3+ 65. Kb2 Qd4+ 66. Kc2 Qxe4+ 67. Kd2 Qd4+ 68. Ke2 Qe4+ 69. Kf1 Kg7 $11)) 62... Qg2+ {[%emt 0:00:06] The position is equal.} 63. Ka3 {[%emt 0:00:10]} Qxg5 {[%emt 0:00:08]} 64. Qc8+ {[%emt 0:00:34]} Kg7 {[%emt 0:00:09] White really could win this.  Weighted Error Value: White=0.29 (precise) /Black=0.34} 1/2-1/2

[Event "Chessable English Open-ch 2022"]
[Site "Kenilwoth"]
[Date "2022.05.21"]
[Round "6.14"]
[White "Larkin, Benjamin"]
[Black "Parker, Keith"]
[Result "1-0"]
[ECO "D11"]
[WhiteElo "1853"]
[BlackElo "1815"]
[Annotator "NA COMBH"]
[PlyCount "41"]
[EventDate "2022.05.18"]
[EventType "swiss"]
[EventCountry "ENG"]
[SourceTitle "playchess.com"]
[Source "ChessBase"]
[SourceQuality "1"]
[TimeControl "5400+30"]

1. Nf3 {[%emt 0:00:02]} d5 {[%emt 0:00:13]} 2. c4 {[%emt 0:00:06]} c6 {[%emt 0:00:18]} 3. g3 {[%emt 0:00:05]} Nf6 {[%emt 0:03:32]} 4. Bg2 {[%emt 0:02:17]} Bf5 {[%emt 0:04:05]} 5. O-O {[%emt 0:00:19]} e6 {[%emt 0:01:30]} 6. d4 {[%emt 0:01:28]} Nbd7 {[%emt 0:06:32]} 7. Nc3 {[%emt 0:03:06]} dxc4 {[%emt 0:03:05]} 8. h3 {[%emt 0:12:33]} h6 {[%emt 0:01:40]} 9. Re1 {[%emt 0:01:42]} Ne4 {[%emt 0:02:29]} 10. Nh4 {[%emt 0:04:02]} Nxc3 {[%emt 0:01:08]} 11. bxc3 {[%emt 0:00:03]} Bh7 {[%emt 0:00:21]} 12. a4 {[%emt 0:03:07]} Be7 {[%emt 0:00:45]} 13. Nf3 {[%emt 0:00:44]} Qa5 {[%emt 0:01:47]} 14. Qd2 {[%emt 0:05:44]} Nf6 {[%emt 0:04:02]} 15. Ne5 {[%emt 0:02:07]} Nd5 {[%emt 0:09:33]} 16. Nxc4 {[%emt 0:06:47]} Qxc3 {[%emt 0:02:27]} 17. Qxc3 {[%emt 0:00:18]} Nxc3 {[%emt 0:00:09]} 18. Ba3 {[%emt 0:07:25]} Ne4 {[%emt 0:05:01]} 19. Reb1 {[%emt 0:03:23]} Bxa3 {[%emt 0:05:24]} 20. Rxa3 {[%emt 0:00:51]} Rb8 {[%emt 0:12:14]} 21. Bxe4 {[%emt 0:02:49]} 1-0

[Event "Chessable English Open-ch 2022"]
[Site "Kenilwoth"]
[Date "2022.05.21"]
[Round "6.15"]
[White "Pert, Max"]
[Black "Herring, Samuel"]
[Result "0-1"]
[ECO "D37"]
[WhiteElo "1634"]
[BlackElo "1900"]
[Annotator "TA"]
[PlyCount "144"]
[EventDate "2022.05.18"]
[EventType "swiss"]
[EventCountry "ENG"]
[SourceTitle "playchess.com"]
[Source "ChessBase"]
[SourceQuality "1"]
[TimeControl "5400+30"]

{[%evp 9,144,27,29,34,34,31,35,29,31,0,0,0,23,27,22,13,27,20,6,12,20,-8,0,0,0,-12,0,0,0,-2,-8,-14,0,0,0,0,0,0,9,0,0,0,0,0,7,0,0,0,13,7,7,6,7,7,14,14,9,7,0,0,0,0,0,-4,0,0,0,0,0,-39,0,-6,-17,-6,-6,-6,-6,-189,0,-97,-18,-10,-8,-349,-362,-360,-360,-329,-330,-324,-335,-342,-343,-329,-292,-264,-265,-329,-345,-409,-403,-412,-332,-246,-274,-392,-400,-517,-516,-508,-503,-502,-456,-541,-414,-455,-483,-360,-370,-692,-658,-971,-971,-968,-934,-995,-929,-1312,-1291,-1836,-1407,-1751,-1617,-1449,-1289,-2180,-1991]} 1. d4 {[%emt 0:00:01]} d5 {[%emt 0:00:19]} 2. Nf3 {[%emt 0:00:23]} Nf6 {[%emt 0:00:05]} 3. c4 {[%emt 0:00:24]} e6 {[%emt 0:00:06]} 4. Nc3 {[%emt 0:00:27]} a6 {[%emt 0:00:08]} 5. cxd5 {[%emt 0:01:10]} exd5 {[%emt 0:00:06]} 6. Bg5 {[%emt 0:01:20] D37: Queen's Gambit Declined: 5 Bf4.} Be6 {[%emt 0:00:34]} 7. e3 {[%emt 0:00:56]} Bd6 {[%emt 0:00:47]} 8. Bd3 {[%emt 0:00:37] White is slightly better.} O-O {[%emt 0:05:02] [#]} 9. Bc2 $146 {[%emt 0:01:28]} ({Predecessor:} 9. O-O h6 10. Bh4 Nbd7 11. Bg3 Bxg3 12. hxg3 c6 13. Rc1 Re8 14. Re1 Bg4 15. Qc2 {0-1 (54) Ladron de Guevara Pinto,P (2424)-Merario Alarcon,A (2408) Casabermeja 2021}) 9... Nbd7 {[%emt 0:03:24]} 10. Qd3 {[%emt 0:01:23][%cal Of3e5]} g6 {[%emt 0:02:50]} 11. h4 {[%emt 0:02:34][%cal Oh4h5]} h5 {[%emt 0:03:56]} 12. O-O {[%emt 0:02:31]} Bf5 {[%emt 0:01:05]} 13. Qe2 {[%emt 0:01:00] [#] Hoping for Bxf5.} Bxc2 {[%emt 0:00:53]} 14. Qxc2 {[%emt 0:00:07]} c6 {[%emt 0:01:26]} 15. Ne2 {[%emt 0:02:40]} Qc7 {[%emt 0:03:03]} 16. Bf4 {[%emt 0:02:08]} Ne4 {[%emt 0:01:07][%cal Bf6e4,Be4d6,Bd6f5][%mdl 32]} 17. Bxd6 {[%emt 0:02:05]} Nxd6 {[%emt 0:03:12]} 18. Nf4 {[%emt 0:01:48]} Nf6 {[%emt 0:01:50]} 19. Rac1 {[%emt 0:04:05]} Qd7 {[%emt 0:05:11]} 20. Ne5 {[%emt 0:01:52]} Qf5 {[%emt 0:01:19]} 21. Qxf5 {[%emt 0:03:48]} Nxf5 {[%emt 0:00:27]} 22. g3 {[%emt 0:00:50]} Ne4 {[%emt 0:06:23]} 23. Nd7 {[%emt 0:04:11]} Rfd8 {[%emt 0:02:07]} 24. Nc5 {[%emt 0:00:19]} Nfd6 {[%emt 0:00:58]} 25. Nfd3 {[%emt 0:03:24]} Nxc5 {[%emt 0:07:44]} 26. Nxc5 {[%emt 0:00:11]} f6 {[%emt 0:02:11]} 27. Kg2 {[%emt 0:02:57]} Kf7 {[%emt 0:00:53]} 28. Rc3 {[%emt 0:05:04]} Rab8 {[%emt 0:06:10]} 29. Rb3 {[%emt 0:01:51]} Ke7 {[%emt 0:05:16]} 30. Rc1 {[%emt 0:02:03]} Re8 {[%emt 0:03:18]} 31. a3 {[%emt 0:02:15]} g5 {[%emt 0:07:21]} 32. Rh1 {[%emt 0:02:41]} Rh8 {[%emt 0:01:24]} 33. Kf3 {[%emt 0:04:06]} a5 {[%emt 0:01:19]} 34. hxg5 {[%emt 0:02:24]} fxg5 {[%emt 0:00:06]} 35. Rb6 {[%emt 0:00:05]} Rh7 {[%emt 0:02:16]} 36. Kg2 {[%emt 0:05:21]} h4 {[%emt 0:01:57]} 37. Rh3 {[%emt 0:03:38]} Rg7 {[%emt 0:03:16]} 38. Rh1 {[%emt 0:01:57]} Kf6 {[%emt 0:00:41]} 39. g4 {[%emt 0:02:39]} Rh7 {[%emt 0:00:43]} (39... Nc4 $5 {[%cal Rc4b6]} 40. Rb3 Re7 $15) 40. Rh3 {[%emt 0:01:15]} Kg6 {[%emt 0:01:14]} 41. Nd3 {[%emt 0:01:46] And now Ne5+ would win.} Nc4 {[%emt 0:00:54]} 42. Rb3 {[%emt 0:01:30]} Re8 {[%emt 0:01:41] ...Re4 is the strong threat.} 43. a4 $2 {[%emt 0:01:39]} (43. Rc3 $11 {and White has nothing to worry.}) 43... Rf7 $2 {[%emt 0:02:08]} (43... Re4 $19 44. Nc5 Rxg4+ 45. Kh1 Rf7) 44. Nc5 {[%emt 0:02:10]} (44. Rc3 $11 {keeps the balance.}) 44... Ref8 {[%emt 0:01:27] Black is more active.} (44... Ree7 $17 45. Rh1 b6) 45. Nd3 $11 {[%emt 0:00:40]} Kg7 {[%emt 0:00:53]} 46. Rc3 $2 {[%emt 0:00:54][%mdl 8192] [#] Black continues to play with concentration.} (46. Rh1 $11 {and White is okay.}) 46... Nxb2 $1 $19 {[%emt 0:01:04][%mdl 512]} 47. f4 {[%emt 0:01:47]} Nxd3 {[%emt 0:01:24]} ({Worse is} 47... Nxa4 48. Ra3 Nb6 49. Ne5 $17) 48. Rxd3 {[%emt 0:00:10]} gxf4 {[%emt 0:00:37]} 49. Rxh4 {[%emt 0:00:14][%mdl 4096] Endgame KRR-KRR} Kg6 {[%emt 0:01:25]} 50. exf4 {[%emt 0:00:54]} Rxf4 {[%emt 0:00:11]} 51. Kg3 {[%emt 0:00:09]} Rf1 {[%emt 0:00:23]} 52. Rb3 {[%emt 0:00:48]} R8f7 {[%emt 0:00:37]} 53. Re3 {[%emt 0:01:09]} Rg1+ {[%emt 0:00:28]} 54. Kh2 {[%emt 0:00:07]} Ra1 {[%emt 0:00:48]} 55. Re6+ {[%emt 0:00:34]} Kg7 {[%emt 0:02:07]} 56. Rhh6 {[%emt 0:01:02]} Rxa4 {[%emt 0:00:41]} 57. Kg3 {[%emt 0:00:33]} (57. Reg6+ $142 Kf8 58. Rh8+ Ke7 59. Rb8) 57... Rxd4 {[%emt 0:00:36]} 58. Kh4 {[%emt 0:00:16]} Re4 {[%emt 0:00:58] Strongly threatening ...Rxe6.} 59. Reg6+ {[%emt 0:00:35]} Kf8 {[%emt 0:00:15]} 60. Kh5 {[%emt 0:00:17]} a4 {[%emt 0:00:40][%cal Ba5a4,Ba4a3][%mdl 32]} 61. g5 {[%emt 0:00:26]} a3 {[%emt 0:00:33]} 62. Rh8+ {[%emt 0:00:15]} Ke7 {[%emt 0:00:01] aiming for ...Ra4.} 63. Ra8 {[%emt 0:00:17] Prevents Ra4.} Re3 {[%emt 0:00:59]} 64. Rgg8 $2 {[%emt 0:00:31]} (64. Ra7 Rb3 65. Rxc6) 64... Kd6 {[%emt 0:00:57] Black is clearly winning.} 65. Kg6 {[%emt 0:01:20]} Rf2 {[%emt 0:00:21]} 66. Rgd8+ {[%emt 0:00:32]} Kc5 {[%emt 0:00:09]} 67. Ra5+ {[%emt 0:00:05]} Kb4 {[%emt 0:00:49]} 68. Rda8 {[%emt 0:00:17]} b5 {[%emt 0:00:22]} 69. Kh7 {[%emt 0:00:22]} Rh3+ {[%emt 0:00:22]} 70. Kg7 {[%emt 0:00:29]} Rg3 {[%emt 0:00:21]} 71. Kh6 {[%emt 0:00:26]} Rh2+ {[%emt 0:00:08]} 72. Kg7 {[%emt 0:00:06]} Rxg5+ {[%emt 0:00:12] Weighted Error Value: White=0.31/Black=0.14 (very precise)} 0-1

[Event "Chessable English Open-ch 2022"]
[Site "Kenilwoth"]
[Date "2022.05.22"]
[Round "7.1"]
[White "Hebden, Mark L"]
[Black "Arkell, Keith C"]
[Result "1/2-1/2"]
[ECO "B13"]
[WhiteElo "2452"]
[BlackElo "2367"]
[Annotator "TA"]
[PlyCount "41"]
[EventDate "2022.05.18"]
[EventType "swiss"]
[EventCountry "ENG"]
[SourceTitle "playchess.com"]
[Source "ChessBase"]
[SourceQuality "1"]
[TimeControl "5400+30"]

{[%evp 22,23,35,33]} 1. e4 {[%emt 0:00:16]} c6 {[%emt 0:01:26]} 2. d4 {[%emt 0:01:54]} d5 {[%emt 0:00:10]} 3. exd5 {[%emt 0:01:36]} cxd5 {[%emt 0:00:09]} 4. Bd3 {[%emt 0:01:20]} Nc6 {[%emt 0:00:47]} 5. c3 {[%emt 0:00:58]} Nf6 {[%emt 0:02:29]} 6. Bf4 {[%emt 0:02:18]} Bg4 {[%emt 0:03:01]} 7. Qb3 {[%emt 0:01:57]} Qd7 {[%emt 0:02:06]} 8. Nd2 {[%emt 0:02:00]} e6 {[%emt 0:02:06]} 9. Ngf3 {[%emt 0:01:53]} Bxf3 {[%emt 0:04:27]} 10. Nxf3 {[%emt 0:00:10]} Bd6 {[%emt 0:00:11]} 11. Bxd6 {[%emt 0:09:01]} Qxd6 {[%emt 0:00:06]} 12. O-O {[%emt 0:00:31] [#]} {Predecessor:} O-O $146 {B13: Caro-Kann: Exchange Variation and Panov-Botvinnik Attack.} 13. Rae1 Qc7 14. Qc2 Rac8 15. Qe2 a6 16. g3 b5 17. a3 Rfe8 18. Kg2 Rb8 19. h4 h6 20. Rh1 Nd7 21. Bb1 {0-1 (51) Kovalev,V (2636)-Riazantsev,A (2666) Sochi 2017} 1/2-1/2

[Event "Chessable English Open-ch 2022"]
[Site "Kenilwoth"]
[Date "2022.05.22"]
[Round "7.2"]
[White "Jackson, James P"]
[Black "Boswell, Jacob Connor"]
[Result "1-0"]
[ECO "B12"]
[WhiteElo "2400"]
[BlackElo "2075"]
[Annotator "TA"]
[PlyCount "69"]
[EventDate "2022.05.18"]
[EventType "swiss"]
[EventCountry "ENG"]
[SourceTitle "playchess.com"]
[Source "ChessBase"]
[SourceQuality "1"]
[TimeControl "5400+30"]

{[%evp 11,68,25,35,8,34,10,64,69,89,85,126,132,143,129,160,163,164,156,166,150,192,199,195,188,200,194,289,281,301,310,320,306,317,310,316,309,602,571,760,734,952,949,1144,1125,1343,1349,2320,1811,2034,1963,29980,29981,29984,29985,29985,29986,29995,29996,29999]} 1. e4 {[%emt 0:00:03]} c6 {[%emt 0:00:38]} 2. d4 {[%emt 0:00:06]} d5 {[%emt 0:00:06]} 3. e5 {[%emt 0:00:04]} Bf5 {[%emt 0:00:11]} 4. Nf3 {[%emt 0:00:38]} e6 {[%emt 0:00:32]} 5. Be2 {[%emt 0:00:07]} Nd7 {[%emt 0:00:15]} 6. O-O {[%emt 0:00:21]} a6 {[%emt 0:00:26]} 7. a4 {[%emt 0:02:08] B12: Caro-Kann: Advance Variation.} h6 {[%emt 0:03:05]} 8. Na3 {[%emt 0:03:34] [#]} b5 $146 {[%emt 0:04:26]} (8... Be4 $11) ({Predecessor:} 8... Be4 9. Nd2 Bh7 10. c4 Ne7 11. Nb3 Nf5 12. Bd2 Be7 13. cxd5 cxd5 14. Bc3 O-O {½-½ (26) Steiger,W (2446)-Hrubcik,M (2403) ICCF email 2017}) 9. c3 $14 {[%emt 0:05:12] White is slightly better.} ({But not} 9. axb5 axb5 10. c3 Bxa3 11. Rxa3 Rxa3 12. bxa3 Nb6 $11) 9... Ne7 {[%emt 0:21:25]} 10. Nc2 {[%emt 0:02:42]} Bxc2 {[%emt 0:02:46]} 11. Qxc2 {[%emt 0:00:06]} Nb6 {[%emt 0:09:20]} 12. b3 {[%emt 0:02:48] White is more active.} Nf5 {[%emt 0:04:06]} 13. Bd3 {[%emt 0:04:52]} g6 {[%emt 0:01:51]} 14. g3 {[%emt 0:06:04][%cal Bg2g3,Bg3g4][%mdl 32]} Be7 {[%emt 0:08:34]} 15. g4 {[%emt 0:19:57] [#] Hoping for a5.} Nh4 {[%emt 0:06:34]} 16. Nxh4 {[%emt 0:00:06]} Bxh4 {[%emt 0:00:08]} 17. a5 {[%emt 0:00:24]} Nc8 {[%emt 0:01:19]} 18. f4 {[%emt 0:00:17]} Rg8 {[%emt 0:13:20]} (18... c5 $142 19. dxc5 Ne7) 19. Kh1 $18 {[%emt 0:00:24]} Ne7 {[%emt 0:08:19]} 20. Ba3 {[%emt 0:05:10]} Qd7 {[%emt 0:03:59]} 21. Rf3 {[%emt 0:03:44]} O-O-O {[%emt 0:00:37]} 22. Rh3 {[%emt 0:00:52]} g5 {[%emt 0:00:16]} 23. Rf1 {[%emt 0:01:52]} Rdf8 $2 {[%emt 0:03:07]} (23... Rde8 24. fxg5 Bxg5 25. Rxf7 Rgf8) 24. f5 {[%emt 0:02:48]} Re8 {[%emt 0:00:48]} 25. f6 {[%emt 0:01:37]} Ng6 {[%emt 0:00:15]} 26. Bxg6 {[%emt 0:00:06]} Rxg6 {[%emt 0:01:05] [#]} 27. Qxg6 $3 {[%emt 0:00:06][%mdl 512]} fxg6 {[%emt 0:00:13]} (27... Rh8 28. Qg7) 28. f7 {[%emt 0:00:04]} b4 {[%emt 0:02:09]} 29. Bxb4 {[%emt 0:02:25] White wants to mate with Rhf3.} c5 {[%emt 0:00:01]} 30. Bxc5 {[%emt 0:01:01]} Kb7 {[%emt 0:01:36]} 31. Rhf3 {[%emt 0:00:55] White mates.} Rc8 {[%emt 0:03:58]} 32. f8=Q {[%emt 0:00:14]} Rxf8 {[%emt 0:00:12]} 33. Rxf8 {[%emt 0:00:06]} Qb5 {[%emt 0:00:41]} 34. R1f7+ {[%emt 0:00:05]} Kc6 {[%emt 0:00:04]} 35. Rc8# {[%emt 0:00:37] Black did not feel at home in the position after the opening.  Weighted Error Value: White=0.05 (flawless) /Black=0.66} 1-0